bitfinex-derivatives/quotes_BTCF0:USTF0_20250904
["timestamp","ask_amount","ask_price","bid_price","bid_amount"]
[1756975715371,1.71779183,110780.0,110770.0,0.13]
[1756975715970,1.71579183,110780.0,110770.0,0.13]
[1756975716170,1.71779183,110780.0,110770.0,0.13]
[1756975716870,1.71879183,110780.0,110770.0,0.13]
[1756975717267,2.84333988,110780.0,110760.0,0.00451]
[1756975717469,1.55368935,110770.0,110760.0,0.04451]
[1756975717670,2.48168306,110770.0,110760.0,0.04451]
[1756975718773,2.49091563,110770.0,110760.0,0.04451]
[1756975719876,2.49591563,110770.0,110760.0,0.04451]
[1756975720579,3.6712408,110770.0,110740.0,0.01462]
[1756975720767,0.73564935,110750.0,110740.0,0.28462]
[1756975721073,1.92430822,110750.0,110740.0,0.28462]
[1756975721468,2.29430822,110750.0,110740.0,0.28462]
[1756975721665,1.47358822,110750.0,110740.0,0.29388244]
[1756975721869,2.24434822,110750.0,110740.0,0.31669244]
[1756975722073,2.24634822,110750.0,110740.0,0.31669244]
[1756975723077,2.21920574,110750.0,110740.0,0.31669244]
[1756975723779,2.22220574,110750.0,110740.0,0.31669244]
[1756975723980,2.24927379,110750.0,110740.0,0.31669244]
[1756975724382,2.24919379,110750.0,110740.0,0.31669244]
[1756975725181,1.42851379,110750.0,110740.0,0.31669244]
[1756975725376,2.30915379,110750.0,110740.0,0.31669244]
[1756975726479,1.10851379,110750.0,110740.0,0.31669244]
[1756975726680,1.92917379,110750.0,110740.0,0.31669244]
[1756975726883,2.25917379,110750.0,110740.0,0.31669244]
[1756975728583,2.23210574,110750.0,110740.0,0.31669244]
[1756975730684,2.25914236,110750.0,110740.0,0.31669244]
[1756975731079,2.48210574,110750.0,110730.0,0.39311679]
[1756975731386,0.37484935,110740.0,110730.0,0.72592679]
[1756975731582,1.51526935,110740.0,110730.0,0.72582679]
[1756975732085,0.69494935,110740.0,110730.0,0.73498516]
[1756975732384,1.51526935,110740.0,110730.0,0.73498516]
[1756975732579,0.69494935,110740.0,110730.0,0.73498516]
[1756975732782,1.14034,110740.0,110730.0,0.73498516]
[1756975733187,1.14234,110740.0,110730.0,0.73498516]
[1756975733686,0.3221,110740.0,110730.0,1.10983451]
[1756975733986,1.14234,110740.0,110730.0,1.10983451]
[1756975734179,1.14334,110740.0,110730.0,1.10983451]
[1756975734382,0.3231,110740.0,110730.0,1.35983451]
[1756975734579,1.14334,110740.0,110730.0,1.35983451]
[1756975736989,1.14334,110740.0,110730.0,1.62503451]
[1756975736990,1.14318,110740.0,110730.0,1.62503451]
[1756975739188,1.14318,110740.0,110730.0,1.37503451]
[1756975740692,0.3231,110740.0,110730.0,1.37503451]
[1756975740893,1.14306,110740.0,110730.0,1.37503451]
[1756975741089,0.3231,110740.0,110730.0,1.37503451]
[1756975741391,1.14298,110740.0,110730.0,1.37503451]
[1756975741885,1.14298,110740.0,110730.0,1.00018516]
[1756975742084,1.51782935,110740.0,110730.0,1.00018516]
[1756975742792,1.51782935,110740.0,110730.0,0.73498516]
[1756975744293,1.54494397,110740.0,110730.0,0.73498516]
[1756975745896,1.89494397,110740.0,110730.0,0.73498516]
[1756975746697,1.85494397,110740.0,110730.0,0.73498516]
[1756975746995,1.54494397,110740.0,110730.0,0.73498516]
[1756975748682,1.79494397,110740.0,110730.0,0.73498516]
[1756975748885,2.15494397,110740.0,110730.0,0.73498516]
[1756975749888,1.79458397,110740.0,110730.0,0.73498516]
[1756975750089,1.54450397,110740.0,110730.0,0.73498516]
[1756975750396,0.72510221,110740.0,110730.0,0.73498516]
[1756975750596,1.54454221,110740.0,110730.0,0.73498516]
[1756975750897,0.72510221,110740.0,110730.0,0.73498516]
[1756975751092,1.54450221,110740.0,110730.0,0.73498516]
[1756975751291,1.16965286,110740.0,110730.0,0.73498516]
[1756975751594,1.54450221,110740.0,110730.0,0.73498516]
[1756975752393,0.72510221,110740.0,110730.0,0.73498516]
[1756975752586,0.72510221,110740.0,110730.0,1.10983451]
[1756975752587,1.16961286,110740.0,110730.0,1.10983451]
[1756975752785,1.16961286,110740.0,110730.0,1.35983451]
[1756975753400,1.16961286,110740.0,110730.0,0.98498516]
[1756975753600,1.54446221,110740.0,110730.0,0.73498516]
[1756975753900,1.16961286,110740.0,110730.0,0.73498516]
[1756975757399,1.14246,110740.0,110730.0,0.73498516]
[1756975757698,1.54466897,110740.0,110730.0,0.73498516]
[1756975759198,1.16962238,110740.0,110730.0,0.73498516]
[1756975759500,1.54466897,110740.0,110730.0,0.71672837]
[1756975762403,1.87466897,110740.0,110730.0,0.71672837]
[1756975766408,1.54466897,110740.0,110730.0,0.71672837]
[1756975769109,0.72530897,110740.0,110730.0,0.71672837]
[1756975769410,1.54438897,110740.0,110730.0,0.71672837]
[1756975769607,0.72530897,110740.0,110730.0,0.71672837]
[1756975769806,1.54438897,110740.0,110730.0,0.71672837]
[1756975770008,0.35026238,110740.0,110730.0,0.71672837]
[1756975770211,1.16938238,110740.0,110730.0,1.09177496]
[1756975771708,0.35026238,110740.0,110730.0,1.09177496]
[1756975771903,1.16930238,110740.0,110730.0,1.11003101]
[1756975772305,1.16930238,110740.0,110730.0,0.73498442]
[1756975772506,1.16930238,110740.0,110730.0,1.11003101]
[1756975773414,0.35026238,110740.0,110730.0,1.11003101]
[1756975773614,1.16930238,110740.0,110730.0,1.11003101]
[1756975773915,1.16930238,110740.0,110730.0,0.73498442]
[1756975774113,1.16930238,110740.0,110730.0,1.11003101]
[1756975774308,1.16930238,110740.0,110730.0,0.73498442]
[1756975774514,1.16930238,110740.0,110730.0,1.11003101]
[1756975775414,1.16930238,110740.0,110730.0,1.37523101]
[1756975775815,0.35026238,110740.0,110730.0,1.37523101]
[1756975776014,1.16914238,110740.0,110730.0,1.37523101]
[1756975776712,1.16914238,110740.0,110730.0,1.00018442]
[1756975776921,1.16914238,110740.0,110730.0,1.37523101]
[1756975778217,1.14198,110740.0,110730.0,1.37523101]
[1756975779515,1.14198,110740.0,110730.0,1.11003101]
[1756975779709,1.14198,110740.0,110730.0,0.73498442]
[1756975780214,1.54414058,110740.0,110730.0,0.73498442]
[1756975780716,1.54414058,110740.0,110730.0,0.73949442]
[1756975781219,1.51702659,110740.0,110730.0,1.11454101]
[1756975781817,1.14198,110740.0,110730.0,1.11454101]
[1756975782013,1.14198,110740.0,110730.0,0.73949442]
[1756975783317,0.3231,110740.0,110730.0,0.73949442]
[1756975783520,1.14174,110740.0,110730.0,0.73949442]
[1756975783719,1.51678659,110740.0,110730.0,0.73949442]
[1756975785817,1.54390035,110740.0,110730.0,0.73949442]
[1756975787812,1.16885376,110740.0,110730.0,0.73949442]
[1756975788318,1.54390035,110740.0,110730.0,0.73949442]
[1756975789321,1.16885376,110740.0,110730.0,0.73949442]
[1756975789522,1.54390035,110740.0,110730.0,0.73949442]
[1756975789721,1.16885376,110740.0,110730.0,0.73949442]
[1756975790025,1.54390035,110740.0,110730.0,1.11454101]
[1756975790323,1.54390035,110740.0,110730.0,1.37974101]
[1756975791420,1.54390035,110740.0,110730.0,1.00469442]
[1756975801629,1.54390035,110740.0,110730.0,1.37974101]
[1756975801827,1.89390035,110740.0,110730.0,1.00469442]
[1756975802021,1.91390035,110740.0,110730.0,1.00469442]
[1756975802326,1.91390035,110740.0,110730.0,0.73949442]
[1756975802327,1.54390035,110740.0,110730.0,0.73949442]
[1756975802828,1.90390035,110740.0,110730.0,0.73949442]
[1756975803524,1.54390035,110740.0,110730.0,0.73949442]
[1756975803922,1.92390035,110740.0,110730.0,0.73949442]
[1756975804827,2.17390035,110740.0,110730.0,0.71668442]
[1756975806724,2.17390035,110740.0,110730.0,0.74047442]
[1756975807228,2.17390035,110740.0,110730.0,0.71668442]
[1756975808225,2.17390035,110740.0,110730.0,0.69842837]
[1756975808529,1.79390035,110740.0,110730.0,0.69842837]
[1756975812832,1.54398035,110740.0,110730.0,0.72221837]
[1756975813130,1.92398035,110740.0,110730.0,0.72221837]
[1756975817533,1.92408659,110740.0,110730.0,0.72221837]
[1756975818030,1.92408659,110740.0,110730.0,0.40306]
[1756975819132,1.92408659,110740.0,110730.0,0.37927]
[1756975819435,1.92528659,110740.0,110730.0,0.04313]
[1756975823335,2.55043942,110740.0,110730.0,0.00451]
[1756975823556,2.17528659,110740.0,110730.0,0.00451]
[1756975824249,2.55043942,110740.0,110730.0,0.00451]
[1756975824842,2.17528659,110740.0,110730.0,0.00451]
[1756975826450,1.41993376,110740.0,110730.0,0.0432]
[1756975826748,2.14508659,110740.0,110730.0,0.0432]
[1756975826937,0.60021376,110740.0,110730.0,0.0432]
[1756975827142,1.79504659,110740.0,110730.0,0.0432]
[1756975827643,2.11504659,110740.0,110730.0,0.0432]
[1756975827845,1.79504659,110740.0,110730.0,0.0432]
[1756975828250,2.11504659,110740.0,110730.0,0.0432]
[1756975830555,0.60021376,110740.0,110730.0,0.0432]
[1756975830753,2.16512659,110740.0,110730.0,0.0432]
[1756975832252,1.78997376,110740.0,110730.0,0.0432]
[1756975832453,2.16512659,110740.0,110730.0,0.0432]
[1756975834155,0.97536659,110740.0,110730.0,0.724]
[1756975834348,1.79500659,110740.0,110730.0,0.404]
[1756975834748,2.17500659,110740.0,110730.0,0.404]
[1756975838758,2.22378371,110740.0,110730.0,0.404]
[1756975841862,2.24478246,110740.0,110730.0,0.404]
[1756975844658,2.24478246,110740.0,110730.0,0.0432]
[1756975844854,2.98073529,110740.0,110730.0,0.00451]
[1756975846268,2.73073529,110740.0,110730.0,0.00451]
[1756975847261,2.73029529,110740.0,110730.0,0.00451]
[1756975850570,2.69009529,110740.0,110730.0,0.00451]
[1756975851269,2.64131817,110740.0,110730.0,0.00451]
[1756975851769,1.82231817,110740.0,110730.0,0.00451]
[1756975851967,0.73201251,110740.0,110730.0,0.04392]
[1756975852171,0.74636534,110740.0,110730.0,0.04392]
[1756975852468,1.06636534,110740.0,110730.0,0.04392]
[1756975852658,1.56548534,110740.0,110730.0,0.04392]
[1756975852863,0.74636534,110740.0,110730.0,0.04392]
[1756975853063,1.56544534,110740.0,110730.0,0.04392]
[1756975853465,1.87544534,110740.0,110730.0,0.04392]
[1756975856871,0.37121251,110740.0,110730.0,0.04392]
[1756975857072,1.87548534,110740.0,110730.0,0.04392]
[1756975857475,1.50033251,110740.0,110730.0,0.04392]
[1756975857782,1.87548534,110740.0,110730.0,0.04392]
[1756975867182,2.28506246,110740.0,110730.0,0.04392]
[1756975867685,2.23628534,110740.0,110730.0,0.04392]
[1756975873294,1.86113251,110740.0,110730.0,0.04392]
[1756975873479,2.23628534,110740.0,110730.0,0.04392]
[1756975875383,2.28506246,110740.0,110730.0,0.04392]
[1756975876390,2.31506246,110740.0,110730.0,0.04392]
[1756975877493,1.95426246,110740.0,110730.0,0.04392]
[1756975877693,2.31506246,110740.0,110730.0,0.04392]
[1756975877992,1.93990963,110740.0,110730.0,0.04392]
[1756975878186,2.31506246,110740.0,110730.0,0.04392]
[1756975878795,4.22338246,110740.0,110730.0,0.04392]
[1756975879480,4.22340825,110740.0,110730.0,0.04392]
[1756975879699,4.22340825,110740.0,110730.0,0.00451]
[1756975889800,4.22340825,110740.0,110730.0,0.01941]
[1756975894001,4.17463113,110740.0,110730.0,0.01941]
[1756975894203,5.30016699,110740.0,110730.0,0.00451]
[1756975894599,5.3489537,110740.0,110730.0,0.00451]
[1756975894795,5.30016699,110740.0,110730.0,0.00451]
[1756975895392,5.36517828,110740.0,110730.0,0.00451]
[1756975895593,5.30016699,110740.0,110730.0,0.00451]
[1756975895899,5.36517828,110740.0,110730.0,0.00451]
[1756975897503,5.36529172,110740.0,110730.0,0.00451]
[1756975897800,5.36493172,110740.0,110730.0,0.00451]
[1756975898696,5.34869371,110740.0,110730.0,0.00451]
[1756975901096,4.52993371,110740.0,110730.0,0.00451]
[1756975901296,5.34869371,110740.0,110730.0,0.00451]
[1756975901698,4.52993371,110740.0,110730.0,0.04242]
[1756975901897,5.34869371,110740.0,110730.0,0.04242]
[1756975902097,3.40439785,110740.0,110730.0,0.04242]
[1756975902302,2.67841923,110740.0,110730.0,0.29242]
[1756975902608,3.87235785,110740.0,110730.0,0.29242]
[1756975904300,3.49717923,110740.0,110730.0,0.29242]
[1756975904499,3.87235785,110740.0,110730.0,0.29242]
[1756975904803,3.49717923,110740.0,110730.0,0.29242]
[1756975905001,3.87235785,110740.0,110730.0,0.29242]
[1756975905304,2.70359785,110740.0,110730.0,0.29242]
[1756975905604,3.90239785,110740.0,110730.0,0.29242]
[1756975910200,3.52721923,110740.0,110730.0,0.29242]
[1756975910406,3.90239785,110740.0,110730.0,0.29242]
[1756975911309,2.70359785,110740.0,110730.0,0.29242]
[1756975911507,3.83239785,110740.0,110730.0,0.29242]
[1756975912706,2.70359785,110740.0,110730.0,0.29242]
[1756975912908,3.88239785,110740.0,110730.0,0.29242]
[1756975913506,4.25757647,110740.0,110730.0,0.29242]
[1756975915402,5.00793371,110740.0,110730.0,0.29242]
[1756975915606,5.36873371,110740.0,110730.0,0.00451]
[1756975917705,5.61873371,110740.0,110730.0,0.00451]
[1756975919207,5.36873371,110740.0,110730.0,0.00451]
[1756975921008,4.54993371,110740.0,110730.0,0.00451]
[1756975921210,5.36873371,110740.0,110730.0,0.00451]
[1756975924110,4.54993371,110740.0,110730.0,0.00451]
[1756975924315,5.36873371,110740.0,110730.0,0.00451]
[1756975924514,5.38497172,110740.0,110730.0,0.00451]
[1756975924724,4.56617172,110740.0,110730.0,0.00451]
[1756975924917,5.38497172,110740.0,110730.0,0.00451]
[1756975926422,3.06545724,110740.0,110730.0,0.00451]
[1756975926608,4.56617172,110740.0,110730.0,0.00451]
[1756975926808,4.56617172,110740.0,110730.0,0.04123]
[1756975927009,4.50116043,110740.0,110730.0,0.04123]
[1756975927213,5.32032043,110740.0,110730.0,0.04123]
[1756975928917,5.38533172,110740.0,110730.0,0.04123]
[1756975929312,5.38545172,110740.0,110730.0,0.04123]
[1756975932224,5.38545172,110740.0,110730.0,0.01869]
[1756975932421,5.38545172,110740.0,110730.0,0.04241]
[1756975932622,5.38549172,110740.0,110730.0,0.04241]
[1756975933314,5.32048043,110740.0,110730.0,0.04241]
[1756975935220,5.32048043,110740.0,110730.0,0.01869]
[1756975936121,5.32043904,110740.0,110730.0,0.01869]
[1756975936816,5.32043904,110740.0,110730.0,0.00451]
[1756975937025,5.38545033,110740.0,110730.0,0.00451]
[1756975938823,5.36920281,110740.0,110730.0,0.00451]
[1756975939511,5.74450178,110740.0,110730.0,0.00451]
[1756975940826,5.38593173,110740.0,110720.0,0.0001]
[1756975941015,2.73016549,110730.0,110720.0,0.0001]
[1756975941216,3.3574513,110730.0,110710.0,0.03751]
[1756975941515,1.19477897,110720.0,110710.0,0.03751]
[1756975941825,1.87206478,110720.0,110710.0,0.03741]
[1756975942916,1.87206478,110720.0,110710.0,0.03841]
[1756975943225,1.8811602,110720.0,110710.0,0.03841]
[1756975944126,1.8811602,110720.0,110710.0,0.03941]
[1756975944827,3.36785711,110720.0,110710.0,0.03941]
[1756975947722,3.36785711,110720.0,110710.0,0.002]
[1756975948734,2.54837711,110720.0,110710.0,0.002]
[1756975949024,3.36781711,110720.0,110710.0,0.002]
[1756975951030,2.54837711,110720.0,110710.0,0.002]
[1756975951330,3.36769711,110720.0,110710.0,0.002]
[1756975951527,2.54837711,110720.0,110710.0,0.002]
[1756975951834,3.36769711,110720.0,110710.0,0.002]
[1756975952127,3.36769711,110720.0,110710.0,0.01599]
[1756975952832,2.54837711,110720.0,110710.0,0.01599]
[1756975953129,3.36769711,110720.0,110710.0,0.01599]
[1756975954032,2.54837711,110720.0,110710.0,0.01599]
[1756975954234,3.36757711,110720.0,110710.0,0.01599]
[1756975954821,3.35844169,110720.0,110710.0,0.03971]
[1756975955028,2.23254478,110720.0,110710.0,0.03971]
[1756975955534,1.41338478,110720.0,110710.0,0.03971]
[1756975955738,2.23254478,110720.0,110710.0,0.03971]
[1756975956436,1.41338478,110720.0,110710.0,0.03971]
[1756975956635,2.23254478,110720.0,110710.0,0.03971]
[1756975956932,1.41338478,110720.0,110710.0,0.03971]
[1756975957136,2.6168744,110720.0,110710.0,0.03971]
[1756975958529,2.60768375,110720.0,110710.0,0.03971]
[1756975959137,2.60771536,110720.0,110710.0,0.03971]
[1756975960338,1.78871536,110720.0,110710.0,0.03971]
[1756975960542,2.61693543,110720.0,110710.0,0.03971]
[1756975961035,2.23237639,110720.0,110710.0,0.03971]
[1756975961232,0.74261639,110720.0,110710.0,0.03971]
[1756975961433,1.56181639,110720.0,110710.0,0.03971]
[1756975961633,1.90181639,110720.0,110710.0,0.03971]
[1756975961927,3.81057639,110720.0,110710.0,0.03971]
[1756975962634,2.99137639,110720.0,110710.0,0.03971]
[1756975962834,3.81061639,110720.0,110710.0,0.03971]
[1756975963740,3.03137639,110720.0,110710.0,0.03971]
[1756975963941,3.85061639,110720.0,110710.0,0.03971]
[1756975964343,3.85061639,110720.0,110710.0,0.04876422]
[1756975964639,2.27607742,110720.0,110710.0,0.04876422]
[1756975964944,3.83073639,110720.0,110710.0,0.04876422]
[1756975966345,3.45543742,110720.0,110710.0,0.04876422]
[1756975966540,3.83073639,110720.0,110710.0,0.04876422]
[1756975967041,2.65137639,110720.0,110710.0,0.29876422]
[1756975967238,3.47065639,110720.0,110710.0,0.29876422]
[1756975967450,3.84065639,110720.0,110710.0,0.29876422]
[1756975967946,3.46535742,110720.0,110710.0,0.29876422]
[1756975968141,3.47069639,110720.0,110710.0,0.29876422]
[1756975968446,3.47069639,110720.0,110710.0,0.65956422]
[1756975969039,2.65137639,110720.0,110710.0,0.65956422]
[1756975969245,3.47065639,110720.0,110710.0,0.65956422]
[1756975969643,3.09535742,110720.0,110710.0,0.65956422]
[1756975969853,3.47065639,110720.0,110710.0,0.65956422]
[1756975970545,3.47057639,110720.0,110710.0,0.65956422]
[1756975971758,3.09527742,110720.0,110710.0,0.65956422]
[1756975971959,3.47057639,110720.0,110710.0,0.65956422]
[1756975974260,3.80057639,110720.0,110710.0,0.65956422]
[1756975979261,3.80057639,110720.0,110710.0,0.40956422]
[1756975980162,3.80057639,110720.0,110710.0,0.04876422]
[1756975980461,3.86558768,110720.0,110710.0,0.04876422]
[1756975982458,3.86561541,110720.0,110710.0,0.04876422]
[1756975987469,3.86561541,110720.0,110710.0,0.03971]
[1756975987660,3.86561541,110720.0,110710.0,0.01599]
[1756975987965,3.86561541,110720.0,110710.0,0.002]
[1756975988162,4.22641541,110720.0,110710.0,0.002]
[1756975988763,4.21017377,110720.0,110710.0,0.002]
[1756975990961,4.46017377,110720.0,110710.0,0.002]
[1756975996169,3.31097377,110720.0,110710.0,0.002]
[1756975996373,4.50993377,110720.0,110710.0,0.002]
[1756975998473,3.44097377,110720.0,110710.0,0.002]
[1756975998671,4.21116412,110720.0,110710.0,0.002]
[1756975999572,4.21124839,110720.0,110710.0,0.002]
[1756976003171,4.21123852,110720.0,110710.0,0.002]
[1756976003371,4.21123852,110720.0,110710.0,0.00651]
[1756976003573,3.03227852,110720.0,110710.0,0.00651]
[1756976003772,4.16123852,110720.0,110710.0,0.00651]
[1756976004073,4.15123852,110720.0,110710.0,0.00651]
[1756976004264,3.83123852,110720.0,110710.0,0.00651]
[1756976004461,4.15123852,110720.0,110710.0,0.00651]
[1756976006476,3.03227852,110720.0,110710.0,0.00651]
[1756976006677,4.14119852,110720.0,110710.0,0.00651]
[1756976007072,4.19119852,110720.0,110710.0,0.00651]
[1756976009076,3.03227852,110720.0,110710.0,0.00651]
[1756976009278,4.15119852,110720.0,110710.0,0.00651]
[1756976009780,4.19996817,110720.0,110710.0,0.00651]
[1756976009976,4.15119852,110720.0,110710.0,0.00651]
[1756976010274,3.03227852,110720.0,110710.0,0.00651]
[1756976010474,4.20996817,110720.0,110710.0,0.02082]
[1756976011484,3.08104817,110720.0,110710.0,0.02082]
[1756976011782,5.26734824,110720.0,110700.0,0.03240707]
[1756976012080,1.19430324,110710.0,110700.0,0.01379]
[1756976012282,1.85153852,110710.0,110700.0,0.01369]
[1756976012478,1.87219194,110710.0,110700.0,0.01369]
[1756976012679,2.23299194,110710.0,110700.0,0.01369]
[1756976013081,2.23299194,110710.0,110700.0,0.01569]
[1756976013485,2.23299194,110710.0,110700.0,0.01369]
[1756976013676,2.23299194,110710.0,110700.0,0.01769]
[1756976014185,2.28176159,110710.0,110700.0,0.01769]
[1756976015287,2.23299194,110710.0,110700.0,0.01769]
[1756976015484,2.23299194,110710.0,110700.0,0.01569]
[1756976015684,2.23299194,110710.0,110700.0,0.01369]
[1756976016084,1.41407194,110710.0,110700.0,0.0362]
[1756976016288,2.23299194,110710.0,110700.0,0.0362]
[1756976016887,3.35914166,110710.0,110690.0,0.11896883]
[1756976017082,1.50153296,110700.0,110690.0,0.44896883]
[1756976017284,2.67772824,110700.0,110690.0,0.44886883]
[1756976017682,3.00772824,110700.0,110690.0,0.44886883]
[1756976018989,3.00772824,110700.0,110690.0,0.45086883]
[1756976019576,3.00772824,110700.0,110690.0,0.45186883]
[1756976020186,3.00772824,110700.0,110690.0,0.45086883]
[1756976020384,3.00772824,110700.0,110690.0,0.45186883]
[1756976021587,2.98772824,110700.0,110690.0,0.45186883]
[1756976022184,2.20876824,110700.0,110690.0,0.45186883]
[1756976022389,2.67772824,110700.0,110690.0,0.45186883]
[1756976022691,3.04772824,110700.0,110690.0,0.45186883]
[1756976030791,2.67772824,110700.0,110690.0,0.45186883]
[1756976033196,2.67772824,110700.0,110690.0,0.45157883]
[1756976036891,1.85876824,110700.0,110690.0,0.45157883]
[1756976037096,2.67772824,110700.0,110690.0,0.45157883]
[1756976041101,1.85876824,110700.0,110690.0,0.45157883]
[1756976041302,2.67772824,110700.0,110690.0,0.45157883]
[1756976041504,2.67772824,110700.0,110690.0,0.81237883]
[1756976042202,2.98772824,110700.0,110690.0,0.81237883]
[1756976049604,2.98772824,110700.0,110690.0,0.48237883]
[1756976056522,2.98772824,110700.0,110690.0,0.12157883]
[1756976056715,2.98772824,110700.0,110690.0,0.48237883]
[1756976058412,2.98769675,110700.0,110690.0,0.48237883]
[1756976061417,2.98790191,110700.0,110690.0,0.48237883]
[1756976063723,0.35720379,110700.0,110690.0,0.48237883]
[1756976063914,1.17612379,110700.0,110690.0,0.73237883]
[1756976064110,1.55155832,110700.0,110690.0,1.05237883]
[1756976064320,1.55155832,110700.0,110690.0,1.09237883]
[1756976064622,1.55155832,110700.0,110690.0,1.10237883]
[1756976065225,1.55155832,110700.0,110690.0,1.11237883]
[1756976067425,1.55155832,110700.0,110690.0,0.73237883]
[1756976069521,1.89155832,110700.0,110690.0,0.73237883]
[1756976070428,1.51612379,110700.0,110690.0,0.73237883]
[1756976070625,1.89155832,110700.0,110690.0,0.73237883]
[1756976071925,1.89155832,110700.0,110690.0,0.73266883]
[1756976075732,0.73263832,110700.0,110690.0,0.73266883]
[1756976075932,1.55151832,110700.0,110690.0,0.73266883]
[1756976076230,3.03782191,110700.0,110690.0,0.73266883]
[1756976076524,3.03782191,110700.0,110690.0,0.71015883]
[1756976076718,3.03782191,110700.0,110690.0,0.73368883]
[1756976081325,0.73263832,110700.0,110690.0,0.73368883]
[1756976081524,1.55147832,110700.0,110690.0,0.73368883]
[1756976082933,0.73263832,110700.0,110690.0,0.73368883]
[1756976083124,1.55147832,110700.0,110690.0,0.73368883]
[1756976085630,1.17604379,110700.0,110690.0,0.79368883]
[1756976085829,1.55147832,110700.0,110690.0,0.79368883]
[1756976087535,1.55147832,110700.0,110690.0,0.48368883]
[1756976087735,1.55147832,110700.0,110690.0,0.82368883]
[1756976089235,0.73263832,110700.0,110690.0,0.82368883]
[1756976089435,1.55147832,110700.0,110690.0,0.82368883]
[1756976091645,0.73263832,110700.0,110690.0,0.82368883]
[1756976091849,1.55143832,110700.0,110690.0,0.82368883]
[1756976093747,0.73263832,110700.0,110690.0,0.82368883]
[1756976094047,1.55143832,110700.0,110690.0,0.82368883]
[1756976095249,1.55143832,110700.0,110690.0,0.48368883]
[1756976095449,1.55143832,110700.0,110690.0,0.79368883]
[1756976100251,1.55139832,110700.0,110690.0,0.79368883]
[1756976100447,1.17596379,110700.0,110690.0,1.77992336]
[1756976102954,1.17596379,110700.0,110690.0,1.87024186]
[1756976103153,0.33,110700.0,110690.0,1.87024186]
[1756976103354,1.14876,110700.0,110690.0,1.87024186]
[1756976104364,0.33,110700.0,110690.0,1.87024186]
[1756976104655,1.14872,110700.0,110690.0,1.87024186]
[1756976106046,0.33,110700.0,110690.0,1.87024186]
[1756976106245,1.14872,110700.0,110690.0,1.87024186]
[1756976113481,1.14872,110700.0,110690.0,2.13544186]
[1756976117479,0.33,110700.0,110690.0,2.13544186]
[1756976117681,1.1486,110700.0,110690.0,3.32947639]
[1756976117983,0.33,110700.0,110690.0,3.32947639]
[1756976119877,0.33,110700.0,110690.0,3.32943639]
[1756976123478,0.33,110700.0,110690.0,3.32885981]
[1756976123983,0.33,110700.0,110690.0,2.51029981]
[1756976124185,0.33,110700.0,110690.0,3.32881981]
[1756976126882,0.33,110700.0,110690.0,2.51029981]
[1756976127188,0.33,110700.0,110690.0,3.32881981]
[1756976128190,0.33,110700.0,110690.0,2.51029981]
[1756976128389,0.33,110700.0,110690.0,3.32877981]
[1756976128789,0.33,110700.0,110690.0,2.51029981]
[1756976128990,0.33,110700.0,110690.0,3.32877981]
[1756976129191,0.33,110700.0,110690.0,1.76000733]
[1756976129391,0.33,110700.0,110690.0,2.95363357]
[1756976145701,0.33,110700.0,110690.0,2.95359357]
[1756976148611,0.33,110700.0,110690.0,2.86327507]
[1756976148912,0.33,110700.0,110690.0,2.04483507]
[1756976149111,0.33,110700.0,110690.0,2.86327507]
[1756976151513,0.33,110700.0,110690.0,2.95359347]
[1756976151808,0.33,110700.0,110690.0,2.57844723]
[1756976152017,0.33,110700.0,110690.0,2.95359347]
[1756976159315,0.33,110700.0,110690.0,2.70359347]
[1756976163319,0.33,110700.0,110690.0,3.07873971]
[1756976163519,0.16750322,110700.0,110690.0,4.40903219]
[1756976163724,0.0001,110720.0,110710.0,0.03867]
[1756976163925,0.33715391,110720.0,110710.0,1.77061624]
[1756976165423,0.33815391,110720.0,110710.0,1.77090624]
[1756976166226,0.3111,110720.0,110710.0,1.77090624]
[1756976167025,0.3111,110720.0,110710.0,1.86120834]
[1756976167226,0.3111,110720.0,110710.0,1.59600834]
[1756976167926,0.3111,110720.0,110710.0,2.41436834]
[1756976170026,0.3111,110720.0,110710.0,1.13056]
[1756976170319,0.3111,110720.0,110710.0,1.50570624]
[1756976172726,0.3111,110720.0,110710.0,1.77090624]
[1756976174817,0.3111,110720.0,110710.0,1.39576]
[1756976175023,0.3111,110720.0,110710.0,1.77090624]
[1756976180433,0.3111,110720.0,110710.0,1.04930624]
[1756976180729,0.3111,110720.0,110710.0,1.77090624]
[1756976181433,0.3111,110720.0,110710.0,1.04930624]
[1756976181635,0.3111,110720.0,110710.0,1.77090624]
[1756976181929,0.3111,110720.0,110710.0,1.39576]
[1756976183435,0.3111,110720.0,110710.0,1.77089972]
[1756976184734,0.3111,110720.0,110710.0,1.39576]
[1756976185135,0.3111,110720.0,110710.0,0.67416]
[1756976185336,0.3111,110720.0,110710.0,1.39576]
[1756976193137,0.68623972,110720.0,110710.0,1.77089972]
[1756976193439,0.3111,110720.0,110710.0,1.77089972]
[1756976195942,0.3111,110720.0,110710.0,1.39576]
[1756976198849,0.3111,110720.0,110710.0,1.77089972]
[1756976201151,1.13026,110720.0,110710.0,1.77089972]
[1756976206448,1.15703727,110720.0,110710.0,1.77089972]
[1756976207153,1.15703727,110720.0,110710.0,1.39576]
[1756976211160,0.33787727,110720.0,110710.0,1.39576]
[1756976211659,1.15671727,110720.0,110710.0,1.39576]
[1756976218864,1.12994,110720.0,110710.0,1.39576]
[1756976223267,1.15672273,110720.0,110710.0,1.39576]
[1756976232866,1.15636273,110720.0,110710.0,1.39576]
[1756976233367,1.12958,110720.0,110710.0,1.39576]
[1756976233574,1.15637733,110720.0,110710.0,1.39576]
[1756976233774,1.12958,110720.0,110710.0,1.39576]
[1756976234768,1.12958,110720.0,110710.0,1.77089972]
[1756976236779,0.3111,110720.0,110710.0,1.77089972]
[1756976237174,1.12958,110720.0,110710.0,1.77089972]
[1756976240273,0.3111,110720.0,110710.0,1.77089972]
[1756976240670,0.97602342,110720.0,110710.0,1.77089972]
[1756976243888,0.97602342,110720.0,110710.0,1.04929972]
[1756976244088,0.33790342,110720.0,110710.0,1.77089972]
[1756976244278,1.15638342,110720.0,110710.0,1.77089972]
[1756976245290,0.33790342,110720.0,110710.0,1.77089972]
[1756976245489,1.15638342,110720.0,110710.0,1.77083568]
[1756976247095,1.12958,110720.0,110710.0,1.77083568]
[1756976247497,0.3111,110720.0,110710.0,1.77083568]
[1756976247798,1.12958,110720.0,110710.0,1.77083568]
[1756976248995,1.15637355,110720.0,110710.0,1.77083568]
[1756976256601,1.15637355,110720.0,110710.0,1.39576]
[1756976256800,1.15637355,110720.0,110710.0,1.77083568]
[1756976257705,1.15637355,110720.0,110710.0,1.39576]
[1756976257896,1.15637355,110720.0,110710.0,1.77083568]